{"text_format":"3","workbook":"xlsx","n_sheets":2,"sheets":["DATA PERTUMBUHAN","BAGAN PERTUMBUHAN"],"not_rendered":{"charts":1,"defined_names":3},"read":"whole","date_system":"1900"}

{"sheet":"DATA PERTUMBUHAN","index":0,"n_rows":23,"n_cols":8,"rows_kept":23,"merged":[[0,1,0,7],[1,2,1,7]]}
[null,"Pertumbuhan Bayi "]
[null,"Nama Bayi:","Nama"]
[null,"Umur","Pon","Ons","Berat (pon)","Persentil\nBerat","Tinggi (inci)","Persentil\nTinggi"]
[null,"Saat lahir",7,null,{"$f":"IF(COUNT(Data[[#This Row],[Pon]:[Ons]])>0,Data[[#This Row],[Pon]]+(Data[[#This Row],[Ons]]/16),NA())","v":7},40,19.5,70]
[null,"4 hari",6,8,{"$f":"IF(COUNT(Data[[#This Row],[Pon]:[Ons]])>0,Data[[#This Row],[Pon]]+(Data[[#This Row],[Ons]]/16),NA())","v":6.5},41,19.5,70]
[null,"7 hari",6,4.8,{"$f":"IF(COUNT(Data[[#This Row],[Pon]:[Ons]])>0,Data[[#This Row],[Pon]]+(Data[[#This Row],[Ons]]/16),NA())","v":6.3},42,20,71]
[null,"11 hari",6,9.6,{"$f":"IF(COUNT(Data[[#This Row],[Pon]:[Ons]])>0,Data[[#This Row],[Pon]]+(Data[[#This Row],[Ons]]/16),NA())","v":6.6},43,20,71]
[null,"14 hari",7,null,{"$f":"IF(COUNT(Data[[#This Row],[Pon]:[Ons]])>0,Data[[#This Row],[Pon]]+(Data[[#This Row],[Ons]]/16),NA())","v":7},44,20,71]
[null,"18 hari",7,12,{"$f":"IF(COUNT(Data[[#This Row],[Pon]:[Ons]])>0,Data[[#This Row],[Pon]]+(Data[[#This Row],[Ons]]/16),NA())","v":7.75},45,21,72]
[null,"21 hari",8,8,{"$f":"IF(COUNT(Data[[#This Row],[Pon]:[Ons]])>0,Data[[#This Row],[Pon]]+(Data[[#This Row],[Ons]]/16),NA())","v":8.5},46,21,72]
[null,"25 hari",null,null,{"$f":"IF(COUNT(Data[[#This Row],[Pon]:[Ons]])>0,Data[[#This Row],[Pon]]+(Data[[#This Row],[Ons]]/16),NA())","v":{"$error":"#N/A"}}]
[null,"28 hari",null,null,{"$f":"IF(COUNT(Data[[#This Row],[Pon]:[Ons]])>0,Data[[#This Row],[Pon]]+(Data[[#This Row],[Ons]]/16),NA())","v":{"$error":"#N/A"}}]
[null,"5 minggu",null,null,{"$f":"IF(COUNT(Data[[#This Row],[Pon]:[Ons]])>0,Data[[#This Row],[Pon]]+(Data[[#This Row],[Ons]]/16),NA())","v":{"$error":"#N/A"}}]
[null,"6 minggu",null,null,{"$f":"IF(COUNT(Data[[#This Row],[Pon]:[Ons]])>0,Data[[#This Row],[Pon]]+(Data[[#This Row],[Ons]]/16),NA())","v":{"$error":"#N/A"}}]
[null,"7 minggu",null,null,{"$f":"IF(COUNT(Data[[#This Row],[Pon]:[Ons]])>0,Data[[#This Row],[Pon]]+(Data[[#This Row],[Ons]]/16),NA())","v":{"$error":"#N/A"}}]
[null,"2 bulan",null,null,{"$f":"IF(COUNT(Data[[#This Row],[Pon]:[Ons]])>0,Data[[#This Row],[Pon]]+(Data[[#This Row],[Ons]]/16),NA())","v":{"$error":"#N/A"}}]
[null,"3 bulan",null,null,{"$f":"IF(COUNT(Data[[#This Row],[Pon]:[Ons]])>0,Data[[#This Row],[Pon]]+(Data[[#This Row],[Ons]]/16),NA())","v":{"$error":"#N/A"}}]
[null,"6 bulan",null,null,{"$f":"IF(COUNT(Data[[#This Row],[Pon]:[Ons]])>0,Data[[#This Row],[Pon]]+(Data[[#This Row],[Ons]]/16),NA())","v":{"$error":"#N/A"}}]
[null,"9 bulan",null,null,{"$f":"IF(COUNT(Data[[#This Row],[Pon]:[Ons]])>0,Data[[#This Row],[Pon]]+(Data[[#This Row],[Ons]]/16),NA())","v":{"$error":"#N/A"}}]
[null,"12 bulan",null,null,{"$f":"IF(COUNT(Data[[#This Row],[Pon]:[Ons]])>0,Data[[#This Row],[Pon]]+(Data[[#This Row],[Ons]]/16),NA())","v":{"$error":"#N/A"}}]
[null,"18 bulan",null,null,{"$f":"IF(COUNT(Data[[#This Row],[Pon]:[Ons]])>0,Data[[#This Row],[Pon]]+(Data[[#This Row],[Ons]]/16),NA())","v":{"$error":"#N/A"}}]
[null,"24 bulan",null,null,{"$f":"IF(COUNT(Data[[#This Row],[Pon]:[Ons]])>0,Data[[#This Row],[Pon]]+(Data[[#This Row],[Ons]]/16),NA())","v":{"$error":"#N/A"}}]
[null,"36 bulan",null,null,{"$f":"IF(COUNT(Data[[#This Row],[Pon]:[Ons]])>0,Data[[#This Row],[Pon]]+(Data[[#This Row],[Ons]]/16),NA())","v":{"$error":"#N/A"}}]

{"sheet":"BAGAN PERTUMBUHAN","index":1,"n_rows":1,"n_cols":2,"rows_kept":1,"merged":[[0,1,1,1]]}
[null,"BAGAN PERTUMBUHAN BAYI"]